[Event "*** Titled Tuesday Blitz"]
[Site "Chess.com"]
[Date "2019.04.02"]
[Round "2"]
[White "penguingm1"]
[Black "viggi38"]
[Result "1-0"]
[WhiteElo "2960"]
[BlackElo "2605"]
[TimeControl "180+2"]
[EndTime "14:20:52 PDT"]
[Termination "penguingm1 won by resignation"]

1. d4 {[%clk 0:03:01.9]} 1... f5 {[%clk 0:03:00.7]} 2. Nf3 {[%clk 0:03:02.2]}
2... Nf6 {[%clk 0:03:02.3]} 3. c4 {[%clk 0:02:48.6]} 3... g6 {[%clk 0:03:03.6]}
4. Nc3 {[%clk 0:02:50.1]} 4... Bg7 {[%clk 0:03:05.2]} 5. Bf4 {[%clk 0:02:51.8]}
5... O-O {[%clk 0:03:06.9]} 6. e3 {[%clk 0:02:53.1]} 6... d6 {[%clk 0:03:07.7]}
7. c5 {[%clk 0:02:54.6]} 7... h6 {[%clk 0:02:54.8]} 8. Bc4+ {[%clk 0:02:37.9]}
8... Kh7 {[%clk 0:02:54.9]} 9. h4 {[%clk 0:02:36.9]} 9... Nh5 {[%clk 0:02:28.5]}
10. Qe2 {[%clk 0:02:12.2]} 10... Nc6 {[%clk 0:01:37.2]} 11. O-O-O {[%clk
0:02:06.4]} 11... e6 {[%clk 0:01:25.5]} 12. d5 {[%clk 0:01:58.1]} 12... exd5
{[%clk 0:01:24.6]} 13. Nxd5 {[%clk 0:02:00]} 13... Ne5 {[%clk 0:01:13.5]} 14.
Bxe5 {[%clk 0:01:48.8]} 14... dxe5 {[%clk 0:01:10.7]} 15. Nb6 {[%clk 0:01:33]}
15... Qe7 {[%clk 0:00:43.1]} 16. Nxa8 {[%clk 0:01:27.7]} 16... Qxc5 {[%clk
0:00:43.5]} 17. Kb1 {[%clk 0:01:28.7]} 17... f4 {[%clk 0:00:28]} 18. e4 {[%clk
0:01:10.1]} 18... Bg4 {[%clk 0:00:24.1]} 19. Rd5 {[%clk 0:01:10.9]} 19... Qc6
{[%clk 0:00:18.5]} 20. Bb5 {[%clk 0:01:11.6]} 20... Qe6 {[%clk 0:00:10.5]} 21.
Nxc7 {[%clk 0:01:12]} 21... Qb6 {[%clk 0:00:10.9]} 22. Ne8 {[%clk 0:01:07.2]}
22... a6 {[%clk 0:00:10]} 23. Nxg7 {[%clk 0:01:05.4]} 23... Nxg7 {[%clk
0:00:11.9]} 24. Bc4 {[%clk 0:01:03.3]} 24... Rc8 {[%clk 0:00:11.7]} 25. Ng5+
{[%clk 0:01:02.8]} 1-0

[Event "*** Titled Tuesday Blitz"]
[Site "Chess.com"]
[Date "2019.04.02"]
[Round "2"]
[White "LaughingTiger"]
[Black "MajorCoast"]
[Result "1-0"]
[WhiteElo "2166"]
[BlackElo "2048"]
[TimeControl "180+2"]
[EndTime "14:20:53 PDT"]
[Termination "LaughingTiger won on time"]

1. e4 {[%clk 0:03:01]} 1... c6 {[%clk 0:03:00.9]} 2. d4 {[%clk 0:03:00.1]} 2...
g6 {[%clk 0:03:02]} 3. c3 {[%clk 0:03:02]} 3... d5 {[%clk 0:03:01.4]} 4. e5
{[%clk 0:03:03]} 4... h5 {[%clk 0:02:59.1]} 5. Nf3 {[%clk 0:03:03.4]} 5... Bg4
{[%clk 0:02:59.4]} 6. h3 {[%clk 0:03:04]} 6... Bxf3 {[%clk 0:02:59.8]} 7. Qxf3
{[%clk 0:03:05.9]} 7... Nh6 {[%clk 0:03:00.4]} 8. e6 {[%clk 0:03:00.7]} 8...
fxe6 {[%clk 0:02:02.7]} 9. Bd3 {[%clk 0:02:59.4]} 9... Rg8 {[%clk 0:01:49.3]}
10. O-O {[%clk 0:02:56.5]} 10... Nd7 {[%clk 0:01:43]} 11. Re1 {[%clk 0:02:49]}
11... e5 {[%clk 0:01:02.9]} 12. dxe5 {[%clk 0:02:32.8]} 12... e6 {[%clk
0:01:04]} 13. Qg3 {[%clk 0:02:15.5]} 13... Kf7 {[%clk 0:00:49.5]} 14. Bg5 {[%clk
0:02:14.2]} 14... Qb6 {[%clk 0:00:43]} 15. Qf4+ {[%clk 0:02:00.4]} 15... Nf5
{[%clk 0:00:41.7]} 16. g4 {[%clk 0:01:54.8]} 16... hxg4 {[%clk 0:00:34.3]} 17.
hxg4 {[%clk 0:01:54.3]} 17... Be7 {[%clk 0:00:26.6]} 18. Bxe7 {[%clk 0:01:49.8]}
18... Kxe7 {[%clk 0:00:27.7]} 19. gxf5 {[%clk 0:01:42.3]} 19... gxf5+ {[%clk
0:00:28.2]} 20. Kf1 {[%clk 0:01:42.9]} 20... Rg4 {[%clk 0:00:24]} 21. Qh6 {[%clk
0:01:42.2]} 21... Rag8 {[%clk 0:00:22.7]} 22. Nd2 {[%clk 0:01:35.2]} 22... Rg1+
{[%clk 0:00:14]} 23. Ke2 {[%clk 0:01:34.9]} 23... Rxe1+ {[%clk 0:00:15.1]} 24.
Rxe1 {[%clk 0:01:36.6]} 24... Nxe5 {[%clk 0:00:16.6]} 25. Qh7+ {[%clk 0:01:34]}
25... Kd6 {[%clk 0:00:16.6]} 26. Qxg8 {[%clk 0:01:31.7]} 26... Nxd3 {[%clk
0:00:17.7]} 27. Qf8+ {[%clk 0:01:31.5]} 27... Kd7 {[%clk 0:00:12.1]} 28. Qf7+
{[%clk 0:01:31.7]} 28... Kd6 {[%clk 0:00:09.4]} 29. Kxd3 {[%clk 0:01:33]} 29...
Qb5+ {[%clk 0:00:06.1]} 30. c4 {[%clk 0:01:33.2]} 30... dxc4+ {[%clk 0:00:05.3]}
31. Nxc4+ {[%clk 0:01:35.1]} 31... Kc5 {[%clk 0:00:04.2]} 32. Re5+ {[%clk
0:01:37]} 1-0

[Event "*** Titled Tuesday Blitz"]
[Site "Chess.com"]
[Date "2019.04.02"]
[Round "2"]
[White "RATNAKARAN"]
[Black "davidarenas1224"]
[Result "1-0"]
[WhiteElo "2477"]
[BlackElo "2551"]
[TimeControl "180+2"]
[EndTime "14:20:58 PDT"]
[Termination "RATNAKARAN won by checkmate"]

1. e4 {[%clk 0:03:01.9]} 1... e5 {[%clk 0:02:59.8]} 2. Nf3 {[%clk 0:03:02.8]}
2... Nc6 {[%clk 0:03:01]} 3. Bb5 {[%clk 0:03:03.5]} 3... a6 {[%clk 0:03:00.6]}
4. Ba4 {[%clk 0:03:04.5]} 4... Nf6 {[%clk 0:03:01.5]} 5. Qe2 {[%clk 0:03:05.3]}
5... b5 {[%clk 0:02:57.4]} 6. Bb3 {[%clk 0:03:06.2]} 6... Be7 {[%clk 0:02:58.7]}
7. d4 {[%clk 0:03:06.3]} 7... d6 {[%clk 0:02:48.5]} 8. c3 {[%clk 0:03:06.8]}
8... O-O {[%clk 0:02:48.1]} 9. O-O {[%clk 0:03:06.9]} 9... Na5 {[%clk
0:02:29.1]} 10. Bc2 {[%clk 0:03:06]} 10... exd4 {[%clk 0:02:22.7]} 11. cxd4
{[%clk 0:03:05.9]} 11... Bb7 {[%clk 0:02:23.4]} 12. Rd1 {[%clk 0:03:01.8]} 12...
Re8 {[%clk 0:02:20.4]} 13. e5 {[%clk 0:02:58.6]} 13... Nd7 {[%clk 0:02:15.8]}
14. Nc3 {[%clk 0:02:51.8]} 14... Nf8 {[%clk 0:02:10.9]} 15. Bf4 {[%clk
0:02:49.8]} 15... Nc4 {[%clk 0:02:00.6]} 16. b3 {[%clk 0:02:48.4]} 16... Nb6
{[%clk 0:02:00.9]} 17. Ne4 {[%clk 0:02:48.1]} 17... Nd5 {[%clk 0:01:50.5]} 18.
Bg5 {[%clk 0:02:48.7]} 18... h6 {[%clk 0:01:49.7]} 19. Bd2 {[%clk 0:02:48]}
19... Qc8 {[%clk 0:01:44.4]} 20. Ng3 {[%clk 0:02:47.9]} 20... dxe5 {[%clk
0:01:37.9]} 21. dxe5 {[%clk 0:02:47.6]} 21... Bc5 {[%clk 0:01:30.8]} 22. Bf5
{[%clk 0:02:42.6]} 22... Qd8 {[%clk 0:01:28]} 23. Rac1 {[%clk 0:02:41.7]} 23...
Bb6 {[%clk 0:01:26.8]} 24. Be4 {[%clk 0:02:38.7]} 24... c6 {[%clk 0:01:17.9]}
25. Nf5 {[%clk 0:02:39.6]} 25... Bc7 {[%clk 0:01:18.3]} 26. Bb1 {[%clk
0:02:31.3]} 26... Ng6 {[%clk 0:01:15.1]} 27. Bxh6 {[%clk 0:02:23.6]} 27... gxh6
{[%clk 0:01:08.9]} 28. Nxh6+ {[%clk 0:02:24.4]} 28... Kg7 {[%clk 0:01:09.9]} 29.
Nf5+ {[%clk 0:02:25.2]} 29... Kg8 {[%clk 0:00:48.5]} 30. Qd2 {[%clk 0:02:23.4]}
30... Ndf4 {[%clk 0:00:38.6]} 31. Qb2 {[%clk 0:02:19.4]} 31... Qb8 {[%clk
0:00:30.2]} 32. e6 {[%clk 0:02:20]} 32... Nxe6 {[%clk 0:00:24.4]} 33. Rd7 {[%clk
0:02:19.2]} 33... Bc8 {[%clk 0:00:17.5]} 34. Nh6+ {[%clk 0:02:18.7]} 34... Kh7
{[%clk 0:00:15.2]} 35. Rxf7+ {[%clk 0:02:08.2]} 35... Kxh6 {[%clk 0:00:16.1]}
36. Qf6 {[%clk 0:02:05.4]} 36... Be5 {[%clk 0:00:11.4]} 37. Qxg6# {[%clk
0:02:06.1]} 1-0

[Event "*** Titled Tuesday Blitz"]
[Site "Chess.com"]
[Date "2019.04.02"]
[Round "2"]
[White "51616516516"]
[Black "HiHaruka"]
[Result "1-0"]
[WhiteElo "2213"]
[BlackElo "2237"]
[TimeControl "180+2"]
[EndTime "14:21:01 PDT"]
[Termination "51616516516 won on time"]

1. c4 {[%clk 0:03:01.9]} 1... Nf6 {[%clk 0:02:58.3]} 2. d4 {[%clk 0:03:02.6]}
2... d5 {[%clk 0:02:58.9]} 3. cxd5 {[%clk 0:03:03.2]} 3... Nxd5 {[%clk
0:02:59.4]} 4. Nf3 {[%clk 0:03:04.8]} 4... e6 {[%clk 0:02:55.1]} 5. e4 {[%clk
0:03:01]} 5... Nf6 {[%clk 0:02:51.9]} 6. Nc3 {[%clk 0:02:59.2]} 6... Be7 {[%clk
0:02:50.5]} 7. Bd3 {[%clk 0:02:49.3]} 7... c5 {[%clk 0:02:28.9]} 8. d5 {[%clk
0:02:37.9]} 8... O-O {[%clk 0:02:23]} 9. O-O {[%clk 0:02:34.7]} 9... exd5 {[%clk
0:02:00.5]} 10. exd5 {[%clk 0:02:33.1]} 10... Bg4 {[%clk 0:02:00.6]} 11. h3
{[%clk 0:02:16.8]} 11... Bh5 {[%clk 0:01:48.1]} 12. Bf4 {[%clk 0:02:17.1]} 12...
Bd6 {[%clk 0:01:16.7]} 13. Bg5 {[%clk 0:02:04]} 13... h6 {[%clk 0:01:02.8]} 14.
Bh4 {[%clk 0:01:53.7]} 14... a6 {[%clk 0:01:01.6]} 15. Ne4 {[%clk 0:01:46.7]}
15... g5 {[%clk 0:00:31.7]} 16. Bg3 {[%clk 0:01:37]} 16... Bxg3 {[%clk 0:00:17]}
17. Nxg3 {[%clk 0:01:38.9]} 17... Bxf3 {[%clk 0:00:15.1]} 18. Qxf3 {[%clk
0:01:36.3]} 18... Nxd5 {[%clk 0:00:13.7]} 19. Rad1 {[%clk 0:01:32.3]} 19... Nc6
{[%clk 0:00:05.5]} 20. Nf5 {[%clk 0:01:14.5]} 20... Nd4 {[%clk 0:00:02.6]} 21.
Nxh6+ {[%clk 0:01:04.1]} 21... Kh8 {[%clk 0:00:02.3]} 22. Qh5 {[%clk 0:00:58]}
1-0

[Event "*** Titled Tuesday Blitz"]
[Site "Chess.com"]
[Date "2019.04.02"]
[Round "2"]
[White "TST2014"]
[Black "DiogenesSinopeus"]
[Result "0-1"]
[WhiteElo "2520"]
[BlackElo "2443"]
[TimeControl "180+2"]
[EndTime "14:21:13 PDT"]
[Termination "DiogenesSinopeus won by resignation"]

1. d4 {[%clk 0:03:01.9]} 1... Nf6 {[%clk 0:03:00.5]} 2. c4 {[%clk 0:03:02.7]}
2... e6 {[%clk 0:03:02.1]} 3. Nf3 {[%clk 0:03:02.9]} 3... Bb4+ {[%clk
0:03:03.7]} 4. Nc3 {[%clk 0:03:03]} 4... Ne4 {[%clk 0:03:03.8]} 5. Qc2 {[%clk
0:02:56.7]} 5... f5 {[%clk 0:03:02.7]} 6. g3 {[%clk 0:02:53.7]} 6... b6 {[%clk
0:03:04]} 7. Bg2 {[%clk 0:02:54.4]} 7... Bb7 {[%clk 0:03:05.5]} 8. Nd2 {[%clk
0:02:49.2]} 8... Bxc3 {[%clk 0:03:01.3]} 9. bxc3 {[%clk 0:02:48.8]} 9... Nd6
{[%clk 0:02:54.2]} 10. e4 {[%clk 0:02:38]} 10... O-O {[%clk 0:02:47.6]} 11. O-O
{[%clk 0:02:34]} 11... Nc6 {[%clk 0:02:41.9]} 12. e5 {[%clk 0:02:30.8]} 12...
Nc8 {[%clk 0:02:26.4]} 13. c5 {[%clk 0:02:26.5]} 13... Na5 {[%clk 0:02:21.7]}
14. Nf3 {[%clk 0:02:24.6]} 14... Nc4 {[%clk 0:02:14.3]} 15. Qe2 {[%clk 0:02:16]}
15... b5 {[%clk 0:02:11.3]} 16. a4 {[%clk 0:02:14.1]} 16... a6 {[%clk
0:02:09.5]} 17. Bg5 {[%clk 0:02:12.4]} 17... Ne7 {[%clk 0:02:06.7]} 18. axb5
{[%clk 0:02:08.9]} 18... axb5 {[%clk 0:02:08.6]} 19. Rxa8 {[%clk 0:02:09.7]}
19... Bxa8 {[%clk 0:02:10.5]} 20. Rb1 {[%clk 0:02:09.4]} 20... Bc6 {[%clk
0:02:01.3]} 21. Nd2 {[%clk 0:01:54.8]} 21... Bxg2 {[%clk 0:01:50.3]} 22. Kxg2
{[%clk 0:01:52.3]} 22... Nxd2 {[%clk 0:01:26.9]} 23. Qxd2 {[%clk 0:01:40.4]}
23... c6 {[%clk 0:01:28.1]} 24. Bxe7 {[%clk 0:01:40.7]} 24... Qxe7 {[%clk
0:01:29.1]} 25. Ra1 {[%clk 0:01:35.2]} 25... f4 {[%clk 0:01:30.3]} 26. gxf4
{[%clk 0:01:24.6]} 26... Qh4 {[%clk 0:01:30.6]} 27. Qe3 {[%clk 0:01:16.6]} 27...
Rxf4 {[%clk 0:01:19]} 28. Ra8+ {[%clk 0:01:16.8]} 28... Kf7 {[%clk 0:01:20.5]}
29. Qg3 {[%clk 0:01:14.2]} 29... Rg4 {[%clk 0:01:19.5]} 30. Ra7 {[%clk
0:01:10.7]} 30... Rxg3+ {[%clk 0:01:18]} 31. hxg3 {[%clk 0:01:11.2]} 31... Qe4+
{[%clk 0:01:19.2]} 32. Kh2 {[%clk 0:01:10.9]} 32... Ke7 {[%clk 0:01:17.7]} 33.
Ra2 {[%clk 0:01:07.1]} 33... Qf3 {[%clk 0:01:16.6]} 34. Rc2 {[%clk 0:01:07.1]}
34... Qd3 {[%clk 0:01:15.4]} 35. Rc1 {[%clk 0:01:07]} 35... Qd2 {[%clk
0:01:16.9]} 36. Rf1 {[%clk 0:01:04.2]} 36... Qxc3 {[%clk 0:01:17.6]} 37. Rd1
{[%clk 0:01:04.6]} 37... b4 {[%clk 0:01:16.9]} 38. Kg2 {[%clk 0:01:02]} 38... b3
{[%clk 0:01:17.2]} 39. Rh1 {[%clk 0:00:59.5]} 39... Qc2 {[%clk 0:01:16.3]} 40.
Ra1 {[%clk 0:00:54.3]} 40... b2 {[%clk 0:01:14.9]} 41. Ra2 {[%clk 0:00:55.6]}
41... Qe4+ {[%clk 0:01:14.5]} 0-1

[Event "*** Titled Tuesday Blitz"]
[Site "Chess.com"]
[Date "2019.04.02"]
[Round "2"]
[White "Bigfish1995"]
[Black "FedaMaster"]
[Result "1-0"]
[WhiteElo "2916"]
[BlackElo "2611"]
[TimeControl "180+2"]
[EndTime "14:21:20 PDT"]
[Termination "Bigfish1995 won by checkmate"]

1. e4 {[%clk 0:03:01.7]} 1... d5 {[%clk 0:03:00.1]} 2. exd5 {[%clk 0:02:58.4]}
2... Qxd5 {[%clk 0:03:02]} 3. Nc3 {[%clk 0:02:59.6]} 3... Qd6 {[%clk 0:03:03.5]}
4. d4 {[%clk 0:02:59.8]} 4... Nf6 {[%clk 0:03:04.9]} 5. Bc4 {[%clk 0:02:54.2]}
5... a6 {[%clk 0:03:05.7]} 6. Nge2 {[%clk 0:02:54.8]} 6... b5 {[%clk 0:03:06.9]}
7. Bf4 {[%clk 0:02:53.2]} 7... Qd8 {[%clk 0:03:07.8]} 8. Bb3 {[%clk 0:02:42.1]}
8... Bb7 {[%clk 0:03:09]} 9. O-O {[%clk 0:02:42.5]} 9... e6 {[%clk 0:03:09.8]}
10. Re1 {[%clk 0:02:37.4]} 10... Be7 {[%clk 0:03:02.6]} 11. Ng3 {[%clk
0:02:35.8]} 11... O-O {[%clk 0:03:03.4]} 12. Nce4 {[%clk 0:02:07.9]} 12... Nd5
{[%clk 0:02:48.7]} 13. Bd2 {[%clk 0:02:04]} 13... Nd7 {[%clk 0:02:49]} 14. Nh5
{[%clk 0:01:54.5]} 14... N7f6 {[%clk 0:02:47.5]} 15. Neg3 {[%clk 0:00:52.8]}
15... c5 {[%clk 0:02:40.5]} 16. dxc5 {[%clk 0:00:50.3]} 16... Bxc5 {[%clk
0:02:41.6]} 17. Qe2 {[%clk 0:00:51.7]} 17... g6 {[%clk 0:02:22.5]} 18. Nxf6+
{[%clk 0:00:51.2]} 18... Qxf6 {[%clk 0:02:24.4]} 19. Ne4 {[%clk 0:00:50.4]}
19... Qe7 {[%clk 0:02:21.6]} 20. Nxc5 {[%clk 0:00:44.4]} 20... Qxc5 {[%clk
0:02:23.5]} 21. Bh6 {[%clk 0:00:45.6]} 21... Rfe8 {[%clk 0:02:24.6]} 22. Qf3
{[%clk 0:00:38.2]} 22... Qe7 {[%clk 0:02:17.1]} 23. a4 {[%clk 0:00:32.9]} 23...
b4 {[%clk 0:02:16.2]} 24. Qg3 {[%clk 0:00:30.9]} 24... Qf6 {[%clk 0:02:12.7]}
25. Rab1 {[%clk 0:00:26.4]} 25... Rac8 {[%clk 0:02:13.1]} 26. h4 {[%clk
0:00:25.9]} 26... a5 {[%clk 0:02:10.3]} 27. Re5 {[%clk 0:00:25.7]} 27... Qe7
{[%clk 0:02:00.7]} 28. Rbe1 {[%clk 0:00:26.6]} 28... Qd6 {[%clk 0:02:01.8]} 29.
h5 {[%clk 0:00:24.4]} 29... Ne7 {[%clk 0:01:46.6]} 30. Qg5 {[%clk 0:00:18.5]}
30... Qc6 {[%clk 0:01:34]} 31. Rxe6 {[%clk 0:00:14.2]} 31... Nf5 {[%clk
0:01:25.3]} 32. Rxc6 {[%clk 0:00:09.9]} 32... Rxe1+ {[%clk 0:01:26.2]} 33. Kh2
{[%clk 0:00:11.3]} 33... Bxc6 {[%clk 0:01:26.6]} 34. hxg6 {[%clk 0:00:12.7]}
34... hxg6 {[%clk 0:01:27.5]} 35. Qxg6+ {[%clk 0:00:13.7]} 35... Kh8 {[%clk
0:01:27.5]} 36. Qxf5 {[%clk 0:00:15]} 36... Rc7 {[%clk 0:01:25.5]} 37. Qf6+
{[%clk 0:00:16.1]} 37... Kh7 {[%clk 0:01:27]} 38. Qg7# {[%clk 0:00:17.3]} 1-0

[Event "*** Titled Tuesday Blitz"]
[Site "Chess.com"]
[Date "2019.04.02"]
[Round "2"]
[White "johnathan113"]
[Black "GCamachoMartinez"]
[Result "0-1"]
[WhiteElo "2605"]
[BlackElo "2352"]
[TimeControl "180+2"]
[EndTime "14:21:23 PDT"]
[Termination "GCamachoMartinez won by resignation"]

1. e4 {[%clk 0:02:10.6]} 1... e5 {[%clk 0:02:59.7]} 2. Nc3 {[%clk 0:02:10.1]}
2... Nf6 {[%clk 0:03:00.2]} 3. f4 {[%clk 0:02:12]} 3... d5 {[%clk 0:03:00.4]} 4.
fxe5 {[%clk 0:02:13.4]} 4... Nxe4 {[%clk 0:03:01.6]} 5. Nf3 {[%clk 0:02:15]}
5... Bg4 {[%clk 0:02:57.2]} 6. Qe2 {[%clk 0:02:05.3]} 6... Nxc3 {[%clk
0:02:52.1]} 7. dxc3 {[%clk 0:02:07.2]} 7... c6 {[%clk 0:02:53.1]} 8. Bf4 {[%clk
0:02:06.9]} 8... Be7 {[%clk 0:02:53.3]} 9. O-O-O {[%clk 0:02:08.3]} 9... Qa5
{[%clk 0:02:53.4]} 10. Kb1 {[%clk 0:02:09]} 10... Nd7 {[%clk 0:02:51.8]} 11. h3
{[%clk 0:02:06.2]} 11... Bh5 {[%clk 0:02:51.4]} 12. g4 {[%clk 0:02:06.7]} 12...
Bg6 {[%clk 0:02:51.9]} 13. Qe3 {[%clk 0:02:00.4]} 13... Nc5 {[%clk 0:02:33.4]}
14. Bg5 {[%clk 0:01:55.2]} 14... Bxg5 {[%clk 0:02:25.7]} 15. Nxg5 {[%clk
0:01:57.1]} 15... h6 {[%clk 0:02:16.2]} 16. Nf3 {[%clk 0:01:56.2]} 16... Ne6
{[%clk 0:02:17]} 17. Bd3 {[%clk 0:01:56.3]} 17... Bxd3 {[%clk 0:02:16]} 18. cxd3
{[%clk 0:01:58.2]} 18... Qb6 {[%clk 0:02:14]} 19. d4 {[%clk 0:02:00.1]} 19...
O-O-O {[%clk 0:02:14.3]} 20. g5 {[%clk 0:02:00]} 20... Qc7 {[%clk 0:02:02.5]}
21. h4 {[%clk 0:02:01.1]} 21... hxg5 {[%clk 0:02:00.4]} 22. Nxg5 {[%clk
0:02:03]} 22... Qe7 {[%clk 0:02:00.5]} 23. Rdf1 {[%clk 0:02:03.7]} 23... Nxg5
{[%clk 0:01:55.5]} 24. Qxg5 {[%clk 0:02:05.6]} 24... Qxg5 {[%clk 0:01:53.2]} 25.
hxg5 {[%clk 0:02:07.5]} 25... Rxh1 {[%clk 0:01:53.1]} 26. Rxh1 {[%clk
0:02:09.4]} 26... Kd7 {[%clk 0:01:52.7]} 27. Rh7 {[%clk 0:02:09.8]} 27... Rg8
{[%clk 0:01:53]} 28. Kc2 {[%clk 0:02:11.7]} 28... Ke6 {[%clk 0:01:53.8]} 29. Kb3
{[%clk 0:02:11.8]} 29... Kf5 {[%clk 0:01:54.3]} 30. Kb4 {[%clk 0:02:12.8]} 30...
b6 {[%clk 0:01:55.5]} 31. c4 {[%clk 0:02:12.8]} 31... dxc4 {[%clk 0:01:49.9]}
32. Kxc4 {[%clk 0:02:13.4]} 32... Kxg5 {[%clk 0:01:51.2]} 33. d5 {[%clk
0:02:10.6]} 33... cxd5+ {[%clk 0:01:48.3]} 34. Kxd5 {[%clk 0:02:12.5]} 34... Kg6
{[%clk 0:01:48]} 35. Rh1 {[%clk 0:02:13.5]} 35... Rd8+ {[%clk 0:01:48.1]} 36.
Kc6 {[%clk 0:02:14.4]} 36... Rd2 {[%clk 0:01:48.9]} 37. Rb1 {[%clk 0:02:10.5]}
37... Kf5 {[%clk 0:01:46.3]} 38. Kb7 {[%clk 0:02:10.7]} 38... Rd7+ {[%clk
0:01:46.2]} 39. Kc8 {[%clk 0:02:10.8]} 39... Re7 {[%clk 0:01:46.8]} 40. Rf1+
{[%clk 0:02:11.9]} 40... Ke6 {[%clk 0:01:45.3]} 41. Kb8 {[%clk 0:02:11.7]} 41...
Rd7 {[%clk 0:01:45.5]} 42. b4 {[%clk 0:02:09.3]} 42... Kxe5 {[%clk 0:01:45.7]}
43. a4 {[%clk 0:02:10.5]} 43... f5 {[%clk 0:01:46.1]} 44. a5 {[%clk 0:02:10.3]}
44... bxa5 {[%clk 0:01:45.9]} 45. bxa5 {[%clk 0:02:12.2]} 45... g5 {[%clk
0:01:46]} 46. a6 {[%clk 0:02:14.1]} 46... f4 {[%clk 0:01:46.6]} 47. Rb1 {[%clk
0:02:15.1]} 47... g4 {[%clk 0:01:24.5]} 48. Rb7 {[%clk 0:02:14.8]} 48... Rd6
{[%clk 0:01:25.6]} 49. Rxa7 {[%clk 0:02:14.6]} 49... Rxa6 {[%clk 0:01:24]} 50.
Rxa6 {[%clk 0:02:15.3]} 50... f3 {[%clk 0:01:25.9]} 51. Rg6 {[%clk 0:02:13.5]}
51... Kf5 {[%clk 0:01:25.9]} 52. Rg8 {[%clk 0:02:14.2]} 52... Kf4 {[%clk
0:01:27.1]} 53. Rc8 {[%clk 0:02:10.7]} 53... f2 {[%clk 0:01:26.2]} 54. Kc7
{[%clk 0:02:07.2]} 54... g3 {[%clk 0:01:24.5]} 55. Kd6 {[%clk 0:02:07.8]} 55...
g2 {[%clk 0:01:24.9]} 56. Rc4+ {[%clk 0:02:02.9]} 56... Kf3 {[%clk 0:01:24.1]}
57. Rc3+ {[%clk 0:02:03.6]} 57... Kf4 {[%clk 0:01:24.8]} 58. Rc4+ {[%clk
0:02:04]} 58... Kg3 {[%clk 0:01:25.8]} 59. Rc3+ {[%clk 0:02:05.1]} 59... Kh2
{[%clk 0:01:25.6]} 0-1

[Event "*** Titled Tuesday Blitz"]
[Site "Chess.com"]
[Date "2019.04.02"]
[Round "2"]
[White "IMRosen"]
[Black "KarstenHansch"]
[Result "1-0"]
[WhiteElo "2530"]
[BlackElo "2371"]
[TimeControl "180+2"]
[EndTime "14:21:24 PDT"]
[Termination "IMRosen won by resignation"]

1. d4 {[%clk 0:03:01.9]} 1... Nf6 {[%clk 0:03:00.2]} 2. Bf4 {[%clk 0:02:59.3]}
2... g6 {[%clk 0:03:00.6]} 3. Nc3 {[%clk 0:02:59.8]} 3... d5 {[%clk 0:03:01]} 4.
e3 {[%clk 0:02:56.5]} 4... Bg7 {[%clk 0:03:01.5]} 5. h4 {[%clk 0:02:55.8]} 5...
c5 {[%clk 0:02:54.9]} 6. Nb5 {[%clk 0:02:51.5]} 6... Na6 {[%clk 0:02:51.9]} 7.
c3 {[%clk 0:02:51.9]} 7... cxd4 {[%clk 0:02:46.5]} 8. exd4 {[%clk 0:02:49.6]}
8... Bg4 {[%clk 0:02:41.1]} 9. Be2 {[%clk 0:02:37]} 9... Bxe2 {[%clk 0:02:29.6]}
10. Qxe2 {[%clk 0:02:38.9]} 10... O-O {[%clk 0:02:29.6]} 11. Nf3 {[%clk
0:02:38.3]} 11... Rc8 {[%clk 0:02:01.6]} 12. Nxa7 {[%clk 0:02:26]} 12... Ra8
{[%clk 0:02:02.1]} 13. Nb5 {[%clk 0:02:25.8]} 13... Qb6 {[%clk 0:01:49.8]} 14.
O-O {[%clk 0:02:19.6]} 14... Ne4 {[%clk 0:01:47.2]} 15. a4 {[%clk 0:02:15.3]}
15... e6 {[%clk 0:01:34.4]} 16. Nd2 {[%clk 0:02:08.3]} 16... Nxd2 {[%clk
0:01:29.5]} 17. Qxd2 {[%clk 0:02:10.2]} 17... Rfc8 {[%clk 0:01:22.6]} 18. h5
{[%clk 0:01:59.6]} 18... Nb8 {[%clk 0:01:22.3]} 19. Rfe1 {[%clk 0:01:45.6]}
19... Nd7 {[%clk 0:01:22.1]} 20. Qe2 {[%clk 0:01:41.6]} 20... Nf6 {[%clk
0:01:18.2]} 21. hxg6 {[%clk 0:01:41.4]} 21... hxg6 {[%clk 0:01:18.5]} 22. Be5
{[%clk 0:01:39.7]} 22... Ne4 {[%clk 0:01:10.2]} 23. Bxg7 {[%clk 0:01:40.2]}
23... Kxg7 {[%clk 0:01:10.7]} 24. f3 {[%clk 0:01:39.5]} 24... Nf6 {[%clk
0:01:10.9]} 25. Qe5 {[%clk 0:01:39.4]} 25... Rh8 {[%clk 0:01:07.3]} 26. g4
{[%clk 0:01:32.7]} 26... Rxa4 {[%clk 0:00:56.1]} 27. Rxa4 {[%clk 0:01:21.9]}
27... Qxb5 {[%clk 0:00:56.9]} 28. Rb4 {[%clk 0:01:08.4]} 28... Qd3 {[%clk
0:00:27.3]} 29. g5 {[%clk 0:01:05.4]} 29... Qd2 {[%clk 0:00:21]} 30. gxf6+
{[%clk 0:00:50.1]} 30... Kg8 {[%clk 0:00:21.1]} 31. Qb8+ {[%clk 0:00:48.5]}
31... Kh7 {[%clk 0:00:21.4]} 32. Qh2+ {[%clk 0:00:49.5]} 1-0